[Event "44th Chess Olympiad Open 2022"]
[Site "Chennai"]
[Date "2022.08.03"]
[Round "6.14"]
[White "Christiansen, Johan-Sebastian"]
[Black "Tan, Justin"]
[Result "1/2-1/2"]
[WhiteElo "2593"]
[BlackElo "2508"]
[Annotator "TA"]
[PlyCount "99"]
[EventDate "2022.??.??"]
[TimeControl "60"]

{[%evp 9,99,24,15,7,23,14,11,4,2,15,25,24,21,24,31,17,92,92,126,130,120,112,
100,93,92,91,110,96,108,110,110,105,97,93,109,88,100,81,92,38,43,44,39,37,46,
29,63,71,108,95,116,116,155,124,108,114,199,202,212,156,216,185,177,168,462,
458,436,249,224,254,395,187,198,170,203,204,208,208,320,320,291,225,215,0,0,0,
0,0,0,0,0,0]} 1. e4 {[%emt 0:00:04] Krasenkow,Michal} e5 {[%emt 0:00:05]} 2.
Nf3 {[%emt 0:00:08]} Nf6 {[%emt 0:00:09]} 3. Nxe5 {[%emt 0:00:50]} d6 {[%emt 0:
00:00]} 4. Nf3 {[%emt 0:00:05]} Nxe4 {[%emt 0:00:07]} 5. Bd3 {[%emt 0:00:04]}
Nf6 {[%emt 0:00:11]} 6. O-O {[%emt 0:00:10] C42: Petroff Defence: 3 Nxe5 and
unusual White 3rd moves.} Be7 {[%emt 0:00:23]} 7. Re1 {[%emt 0:00:08]} O-O {
[%emt 0:00:14]} 8. Bf1 {[%emt 0:00:05]} Re8 {[%emt 0:09:36]} 9. d4 {[%emt 0:00:
00]} c6 {[%emt 0:04:01]} 10. c4 {[%emt 0:01:16] [#]} d5 $146 {[%emt 0:17:52]} (
{Predecessor:} 10... Nbd7 11. Nc3 Nf8 12. h3 d5 13. Qb3 Qb6 14. cxd5 Qxb3 15.
axb3 Nxd5 16. Nxd5 cxd5 {1-0 (45) Praggnanandhaa,R (2608)-Krasenkow,M (2591)
Krasnaya Polyana 2021 CBM 203 [Krasenkow,Michal]}) 11. Nc3 {[%emt 0:03:54]} Be6
{[%emt 0:06:07]} 12. Qb3 {[%emt 0:11:29]} dxc4 {[%emt 0:10:05]} (12... Qb6 $11
{keeps the balance.}) 13. Qxb7 $16 {[%emt 0:17:16]} (13. Bxc4 Bxc4 14. Qxc4
Nbd7 $11) 13... Qb6 {[%emt 0:10:05]} 14. Qxa8 {[%emt 0:01:57]} Nbd7 {[%emt 0:
00:00]} 15. Qxe8+ {[%emt 0:01:14]} Nxe8 {[%emt 0:00:02]} 16. Bxc4 {[%emt 0:00:
00]} Bxc4 {[%emt 0:08:38]} 17. Rxe7 {[%emt 0:00:14]} Qd8 {[%emt 0:05:17]} 18.
Re1 {[%emt 0:01:54]} (18. Bg5 Nef6 19. Bxf6 gxf6 $16) 18... h6 {[%emt 0:00:43]}
19. d5 {[%emt 0:25:03]} Bxd5 {[%emt 0:02:40]} 20. Nxd5 {[%emt 0:00:09]} cxd5 {
[%emt 0:00:02]} 21. Be3 {[%emt 0:00:10]} a6 {[%emt 0:01:17]} 22. Red1 {[%emt 0:
00:00]} Ndf6 {[%emt 0:03:26]} 23. Bd4 {[%emt 0:04:54] White is much more
active.} Nd6 {[%emt 0:01:10]} 24. Bxf6 {[%emt 0:04:59]} (24. Rac1 $16) 24...
Qxf6 $14 {[%emt 0:00:01]} 25. Rxd5 {[%emt 0:01:03] aiming for Rd4.} Qxb2 {
[%emt 0:00:21]} 26. Re1 {[%emt 0:00:07]} Qa3 {[%emt 0:03:08]} 27. h4 {[%emt 0:
00:00]} g6 {[%emt 0:02:16]} 28. h5 {[%emt 0:04:22]} gxh5 {[%emt 0:04:02]} 29.
Rxh5 {[%emt 0:00:34]} Qxa2 {[%emt 0:02:12]} 30. Rxh6 {[%emt 0:00:14]} Qa3 {
[%emt 0:01:30]} 31. Rd1 {[%emt 0:04:51]} Ne4 {[%emt 0:01:09]} 32. Rh4 {[%emt 0:
00:00]} Nf6 {[%emt 0:01:29] [#]} (32... Nc5 $16 33. Ng5 Kg7) 33. Rf4 $1 $18 {
[%emt 0:01:08]} Qc3 {[%emt 0:01:51]} 34. Rdd4 {[%emt 0:04:06]} Kg7 {[%emt 0:00:
00]} (34... Qc6 $16 35. g3 Qb6) 35. Kh2 {[%emt 0:01:40]} Qc7 {[%emt 0:02:44]
[%cal Yf6d5] ...Nd5! is the strong threat.} 36. g3 {[%emt 0:00:32]} Nh5 $2 {
[%emt 0:01:06]} (36... Ng8 37. Rc4 Qb6) 37. Rf5 {[%emt 0:01:16]} Qc2 {[%emt 0:
00:00]} 38. Rg4+ {[%emt 0:00:50]} (38. Rg5+ $142 Kf8 39. Rd8+ Ke7 40. Rd2)
38... Kf8 {[%emt 0:00:19]} 39. Nd4 {[%emt 0:00:40]} Qd2 {[%emt 0:00:28]} (39...
Qa2 {was worth a try.} 40. Rh4 (40. Rxh5 Qxf2+ 41. Kh1 Qf1+ 42. Kh2 Qf2+ 43.
Kh3 Qf1+ 44. Kh4 Qf6+ 45. Rhg5 Qh6+ 46. Rh5 Qf6+ 47. Kh3 Qf1+ 48. Kh2 Qf2+ $11)
40... Ng7 41. Rh8+ Ke7) 40. Re4 {[%emt 0:00:33]} ({And not} 40. Rxh5 Qxf2+ 41.
Kh1 (41. Kh3 Qf1+ 42. Kh2 Qf2+ 43. Kh3 Qf1+ 44. Kh4 Qf6+ 45. Rhg5 Qh8+ 46. Rh5
Qf6+ 47. Kh3 Qf1+ $11) 41... Qf1+ 42. Kh2 Qf2+ 43. Kh3 Qf1+ 44. Kh4 Qf6+ 45.
Rhg5 (45. Kh3 Qf1+ 46. Kh2 Qf2+ $11) 45... Qh8+ 46. Rh5 Qf6+ 47. Rhg5 (47. Kh3
Qf1+ 48. Kh2 Qf2+ $11) 47... Qh8+ 48. Rh5 Qf6+ $11) (40. Ne6+ $142 Ke7 41. Ng5
(41. Rd4 Qc2 $11)) 40... Ng7 {[%emt 0:00:45]} 41. Rf3 {[%emt 0:08:29]} a5 {
[%emt 0:03:01]} 42. Ref4 {[%emt 0:03:30]} Kg8 {[%emt 0:00:49]} 43. Nc6 {
[%emt 0:05:18] [#] Threatens to win with Ne7+.} f5 {[%emt 0:13:58]} (43... Qd6
$142) 44. Ne7+ {[%emt 0:01:19]} Kf8 {[%emt 0:00:02]} 45. Nxf5 {[%emt 0:00:20]}
Ne6 {[%emt 0:00:04]} 46. Rg4 {[%emt 0:01:53]} ({White should play} 46. Rc4 $18
Ng5 47. Rc8+ Kf7 48. Rf4) 46... Ng5 $1 $11 {[%emt 0:00:35] The position is
equal.} 47. Rff4 {[%emt 0:07:43]} Ne6 {[%emt 0:00:01]} 48. Rf3 {[%emt 0:03:42]}
Ng5 $1 {[%emt 0:00:01]} 49. Rff4 {[%emt 0:01:04]} Ne6 {[%emt 0:00:05]} 50. Rf3
{[%emt 0:00:04] Weighted Error Value: White=0.26 (precise) /Black=0.24 
(precise)} 1/2-1/2

[Event "44th Chess Olympiad Open 2022"]
[Site "Chennai"]
[Date "2022.08.03"]
[Round "6.14"]
[White "Cheng, Bobby"]
[Black "Hammer, Jon Ludvig"]
[Result "1-0"]
[WhiteElo "2540"]
[BlackElo "2638"]
[Annotator "TA"]
[PlyCount "76"]
[EventDate "2022.??.??"]
[TimeControl "60"]

{[%evp 16,76,16,0,0,-16,-16,-49,6,-19,-16,-17,0,0,-18,-52,-39,-29,-4,-45,-35,
-52,-37,-41,-39,-79,-38,-77,-44,-62,-17,-75,-58,-73,-40,-122,-85,-85,-88,-82,
-68,-104,-64,-137,-98,-151,-1,-4,-8,-7,0,0,0,0,0,-22,0,0,0,-1,24,-135,0]} 1. d4
{[%emt 0:00:03]} Nf6 {[%emt 0:00:05]} 2. c4 {[%emt 0:00:05]} e6 {[%emt 0:00:07]
} 3. Nf3 {[%emt 0:00:05]} d5 {[%emt 0:00:07]} 4. g3 {[%emt 0:00:05]} Bb4+ {
[%emt 0:00:08]} 5. Bd2 {[%emt 0:00:16]} Be7 {[%emt 0:00:07]} 6. Bg2 {[%emt 0:
00:00]} O-O {[%emt 0:00:14]} 7. O-O {[%emt 0:00:30]} c6 {[%emt 0:00:08]} 8. Qc2
{[%emt 0:02:12]} Nbd7 {[%emt 0:00:13]} 9. Nc3 {[%emt 0:04:56]} dxc4 {[%emt 0:
00:00] E11: Bogo-Indian.} 10. a4 {[%emt 0:01:26] Against b5} a5 {[%emt 0:08:38]
} 11. e4 {[%emt 0:03:26] [#]} h6 $5 $146 {[%emt 0:01:30] New and interesting.}
(11... e5 $1 $15) ({Predecessor:} 11... e5 12. dxe5 Ng4 13. e6 fxe6 14. h3 Nge5
15. Nd4 Nc5 16. Be3 Qb6 17. Nce2 Qb4 18. Bd2 Qb6 19. Be3 Qb4 20. Bd2 Qb6 {
½-½ (20) Kelires,A (2530)-Kuljasevic,D (2545) Rio Achaea 2018}) 12. h3 {
[%emt 0:06:41]} b6 {[%emt 0:01:22]} 13. Rfe1 {[%emt 0:03:08]} Bb7 {[%emt 0:01:
15]} 14. Rad1 {[%emt 0:00:08]} Re8 {[%emt 0:05:05]} 15. Bf4 {[%emt 0:11:25]}
Bb4 {[%emt 0:02:21]} 16. g4 {[%emt 0:04:43]} Qe7 {[%emt 0:00:00]} 17. g5 {
[%emt 0:05:48]} Nh5 {[%emt 0:19:26]} 18. Be3 {[%emt 0:00:05]} hxg5 {[%emt 0:01:
15]} 19. Bxg5 {[%emt 0:00:41]} f6 {[%emt 0:04:07]} 20. Be3 {[%emt 0:01:49]} e5
{[%emt 0:01:53]} 21. Kh1 {[%emt 0:02:32]} Qf7 {[%emt 0:00:00]} 22. Rg1 {
[%emt 0:05:24]} Kh8 {[%emt 0:09:09]} 23. Qe2 {[%emt 0:03:59]} (23. Bf1 $1 $11)
23... exd4 {[%emt 0:08:52]} 24. Nxd4 {[%emt 0:00:12]} Ne5 {[%emt 0:01:01]
Strongly threatening ...g5.} (24... g5 $5 {[%cal Rd7e5]} 25. Nf5 Ne5 $17) 25.
Nf5 {[%emt 0:02:52]} (25. Bf3 $15 Nxf3 26. Qxf3) 25... g6 {[%emt 0:00:12]} 26.
Nd6 {[%emt 0:05:44]} Bxd6 {[%emt 0:02:25]} 27. Rxd6 {[%emt 0:00:04]} Qc7 {
[%emt 0:11:35]} 28. Rd2 {[%emt 0:05:07]} Re7 {[%emt 0:00:00]} 29. Rgd1 {
[%emt 0:01:48]} (29. Bf3 $15) 29... Rg8 {[%emt 0:00:33]} ({Weaker is} 29... Nd3
30. b3 $15) 30. Bd4 {[%emt 0:07:09]} (30. Kg1 $142) 30... Rh7 {[%emt 0:02:50]}
(30... Nd3 $17 {...Rh7 is the strong threat.} 31. b3 c5) 31. Bxe5 $11 {[%emt 0:
01:58]} fxe5 $40 {[%emt 0:01:20] White needs to defend precisely.} 32. Qxc4 {
[%emt 0:00:48]} Nf4 {[%emt 0:05:18] aiming for ...Bc8.} 33. Ne2 $1 {[%emt 0:03:
10]} Nxg2 {[%emt 0:02:55]} ({Much less strong is} 33... Nxh3 34. Qxg8+ $3 Kxg8
35. Rd8+ Qxd8 36. Rxd8+ Kg7 37. Rd7+ Kg8 38. Rxh7 Nxf2+ 39. Kg1 Kxh7 40. Kxf2
$18) 34. Kxg2 {[%emt 0:00:03]} Bc8 {[%emt 0:00:41] Inhibits Qe6.} 35. Ng1 {
[%emt 0:01:51]} Qe7 {[%emt 0:00:41] And now ...Qg5+ would win.} (35... g5 $5 {
[%cal Rg5g4]}) 36. Rd3 {[%emt 0:00:00]} g5 {[%emt 0:00:33][%cal Yg6g5,Yg5g4]}
37. Rg3 {[%emt 0:01:54]} g4 {[%emt 0:00:32]} 38. Kf1 $2 {[%emt 0:11:59] [#]} (
38. Qxc6 $11 Bb7 39. Qxb6) 38... Rf8 {[%emt 0:00:00] Weighted Error Value:
White=0.31/Black=0.26 (precise) . Loss on time!?} (38... Qf6 $1 $17 39. Qd3 Rf7
) 1-0

[Event "44th Chess Olympiad Open 2022"]
[Site "Chennai"]
[Date "2022.08.03"]
[Round "6.15"]
[White "Guseinov, Gadir"]
[Black "Druska, Juraj"]
[Result "1-0"]
[WhiteElo "2668"]
[BlackElo "2519"]
[Annotator "TA"]
[PlyCount "83"]
[EventDate "2022.??.??"]
[TimeControl "60"]

{[%evp 14,83,0,0,0,-46,-39,-35,-33,-51,-53,-40,-59,-82,-91,-84,-87,-77,-49,-94,
-41,-39,0,0,0,-21,8,0,0,0,285,300,308,252,323,315,312,302,477,459,725,722,675,
600,535,445,426,266,256,153,295,34,30,0,456,428,29993,529,684,657,659,648,648,
641,641,613,747,726,825,887,1381,1364]} 1. e4 {[%emt 0:00:05]} e6 {[%emt 0:00:
00]} 2. d4 {[%emt 0:00:12]} d5 {[%emt 0:00:07]} 3. e5 {[%emt 0:00:05]} c5 {
[%emt 0:00:05]} 4. c3 {[%emt 0:00:03]} Nc6 {[%emt 0:00:17]} 5. Nf3 {[%emt 0:00:
00]} Qb6 {[%emt 0:00:11]} 6. Be2 {[%emt 0:00:34]} cxd4 {[%emt 0:00:30]} 7. cxd4
{[%emt 0:00:05]} Nh6 {[%emt 0:00:09]} 8. Bxh6 $1 {[%emt 0:01:06] Black must
now prevent Bc1. is currently scoring better than 8.Nc3.} Qxb2 {[%emt 0:00:00]
C02: French: Advance Variation.} 9. Nc3 {[%emt 0:02:24]} Qxc3+ $15 {[%emt 0:00:
11]} 10. Bd2 {[%emt 0:00:03]} Qa3 {[%emt 0:00:06] Black is slightly better.}
11. Rb1 {[%emt 0:00:13]} Qxa2 {[%emt 0:00:07]} 12. O-O {[%emt 0:00:14]} a6 {
[%emt 0:00:08] Prevents Bb5.} 13. Bd3 {[%emt 0:28:40]} Qa3 $1 {[%emt 0:00:00]}
14. Qc2 {[%emt 0:07:12]} Qe7 $1 {[%emt 0:18:45] [#]} 15. Ng5 $146 {[%emt 0:06:
45]} ({Predecessor:} 15. Bxh7 g6 16. Ng5 Kd7 17. Rfc1 Kd8 18. Rb6 Ra7 19. Ba5
Ke8 20. Nxf7 Qh4 21. Qxg6 Kd7 22. Nxh8 Qf4 23. Qc2 Bh6 24. Rxc6 {1-0 (24)
Tsydypov,Z (2520)-Zasukhin,V (2252) Ekaterinburg 2018}) 15... g6 {[%emt 0:23:
01]} 16. h4 {[%emt 0:16:52]} Bg7 {[%emt 0:01:22]} (16... Nxd4 $17 17. Qa4+ Nc6)
17. Nf3 {[%emt 0:08:07]} O-O {[%emt 0:08:19]} 18. h5 $1 {[%emt 0:00:00]} a5 {
[%emt 0:08:03]} 19. Rfc1 {[%emt 0:11:40]} (19. h6 $5 {[%cal Rh6g7]} Bh8 20. Bc1
$15) 19... f6 {[%emt 0:11:58][%cal Rf6e5]} 20. h6 {[%emt 0:07:34]} Bh8 {
[%emt 0:00:30][%cal Rf6e5]} 21. Bxg6 $1 {[%emt 0:00:04][%cal Yb1b6]} fxe5 $2 {
[%emt 0:00:57] [#]} (21... a4 $11) 22. Ng5 $1 $18 {[%emt 0:00:00][%cal Rg6h7]}
Bf6 {[%emt 0:20:32]} 23. Nxh7 {[%emt 0:00:56]} (23. Bxh7+ Kh8 24. Qg6 exd4 $17)
23... e4 {[%emt 0:00:06][%cal Yf6d4]} 24. Nxf8 {[%emt 0:00:00] Really sharp!}
Qxf8 {[%emt 0:00:06]} 25. Be3 {[%emt 0:02:20]} Kh8 {[%emt 0:00:00]} (25... Ne7
$142) 26. Qd1 {[%emt 0:01:05]} e5 {[%emt 0:04:02]} (26... Qe7 $142 27. Qh5 a4)
27. dxe5 {[%emt 0:01:19]} Nxe5 {[%emt 0:00:07] [#]} 28. Qxd5 $1 {[%emt 0:01:29]
[%cal Yb1b6] aiming for Rb6!} Nxg6 {[%emt 0:00:04]} 29. Qxe4 {[%emt 0:00:09]}
Ne7 {[%emt 0:01:02]} 30. Rb5 {[%emt 0:01:44] Prevents Bf5. Rc7 is the strong
threat.} (30. Rc7 Bf5 31. Qxb7 Bxb1 32. Qxb1 Rd8 $15) 30... Ra6 {[%emt 0:01:31]
} 31. Rbc5 {[%emt 0:00:39]} ({Weaker is} 31. Rc7 Qd8 32. Bf4 Re6 $11) (31. Bg5
$1 $18) 31... Rc6 {[%emt 0:02:04]} (31... Rd6 $16) 32. Rd1 $2 {[%emt 0:00:21]}
({Not} 32. Rxa5 Qd8 33. Rac5 Rd6 $16) ({White has to play} 32. g4 $1 $18 {
[%cal Rg4g5]}) 32... Re6 $1 $14 {[%emt 0:01:01]} 33. Qf3 {[%emt 0:00:20] And
now Rc7 would win. White has compensation.} b6 $2 {[%emt 0:00:19]} (33... Nc6
$11 {and Black has nothing to worry.}) 34. Rc7 $18 {[%emt 0:00:23]} Re5 {
[%emt 0:00:48] [#]} (34... Kh7 $18 35. Bg5 Kg6) 35. Rd6 {[%emt 0:00:35]} (35.
Rd8 $142 $3 Kh7 36. Rxf8 Rf5 37. Rxf6 Rxf3 38. Rxe7+ Kg8 39. h7+ Kh8 40. Rxf3
Bg4 41. Rf8#) 35... Ng8 {[%emt 0:00:32] [#] White is clearly winning.} 36. h7
$1 {[%emt 0:01:01]} Qxd6 {[%emt 0:00:16]} 37. hxg8=Q+ {[%emt 0:00:12]} ({
And not} 37. Rxc8 Kxh7 38. Qh3+ Kg7 39. Qg3+ Bg5 40. Bxg5 Re1+ 41. Kh2 Qxg3+
42. Kxg3 Nf6 $11) 37... Kxg8 {[%emt 0:00:01]} 38. Rxc8+ {[%emt 0:00:08]} Kf7 {
[%emt 0:00:26] [#]} 39. Rc6 $1 {[%emt 0:00:18]} Qd8 {[%emt 0:00:58]} 40. Rxb6 {
[%emt 0:00:48]} a4 {[%emt 0:00:00]} 41. Ra6 {[%emt 0:06:14]} Ra5 {[%emt 0:14:
46]} 42. Bb6 {[%emt 0:00:30] Weighted Error Value: White=0.57/Black=0.89} 1-0

[Event "44th Chess Olympiad Open 2022"]
[Site "Chennai"]
[Date "2022.08.03"]
[Round "6.15"]
[White "Abasov, Nijat"]
[Black "Ftacnik, Lubomir"]
[Result "1-0"]
[WhiteElo "2633"]
[BlackElo "2483"]
[Annotator "TA"]
[PlyCount "101"]
[EventDate "2022.??.??"]
[TimeControl "60"]

{[%evp 11,101,23,43,24,51,-18,-9,-6,-18,-9,0,-59,-54,-76,-14,-26,-22,-29,-7,
-14,18,14,16,16,18,19,21,18,34,22,26,10,57,32,54,52,53,53,47,58,62,59,63,0,114,
111,118,0,97,0,98,33,37,25,67,69,61,46,91,89,97,93,93,89,80,71,208,203,204,201,
193,186,201,139,214,214,1310,1254,1123,1050,29992,29988,29993,29989,29989,
29980,29992,29993,29993,29993,29993,29994]} 1. d4 {[%emt 0:00:17]} Nf6 {
[%emt 0:00:08]} 2. c4 {[%emt 0:00:08]} g6 {[%emt 0:00:04]} 3. Nc3 {[%emt 0:00:
00]} d5 {[%emt 0:00:06]} 4. Nf3 {[%emt 0:00:13]} Bg7 {[%emt 0:00:09]} 5. Qb3 {
[%emt 0:00:09]} dxc4 {[%emt 0:00:34]} 6. Qxc4 {[%emt 0:00:09]} Be6 {[%emt 0:00:
00]} 7. Qb5+ {[%emt 0:06:46] 7.Qa4+ is the fancy move. D96: Grünfeld: Russian
System (5 Qb3): sidelines.} Bd7 {[%emt 0:00:14]} 8. Qd3 $5 {[%emt 0:01:23] An
interesting side line.} (8. Qxb7 $14 Bc6 9. Qb3) 8... c5 {[%emt 0:00:00]} 9. d5
{[%emt 0:02:47] The position is equal.} O-O {[%emt 0:01:35]} 10. e4 {[%emt 0:
00:16]} e6 {[%emt 0:03:41] [#]} 11. d6 $146 {[%emt 0:09:28]} (11. dxe6 $11 Bxe6
12. Qxd8 Rxd8 13. Ng5) ({Predecessor:} 11. Be2 exd5 12. exd5 Bf5 13. Qc4 Nbd7
14. O-O Re8 15. Rd1 Nb6 16. Qb3 Rc8 17. Be3 {0-1 (39) Syvalahti,T (2172)-Kanep,
M (2456) Finland 2018}) 11... Nc6 $15 {[%emt 0:02:49]} 12. Be2 {[%emt 0:01:26]}
b5 {[%emt 0:06:50]} ({Black should play} 12... Qb6 $17 {next ...Nd4 is good
for Black.} 13. Be3 Ng4) 13. O-O $11 {[%emt 0:02:00]} (13. Nxb5 Nb4 14. Qb1
Bxb5 15. Bxb5 Qa5 $17) 13... b4 {[%emt 0:08:57]} 14. Nb1 {[%emt 0:17:09]} Ng4 {
[%emt 0:03:39]} (14... Rc8 $5 {[%cal Re6e5]}) 15. Nbd2 {[%emt 0:00:55]} Nge5 {
[%emt 0:03:15]} 16. Nxe5 {[%emt 0:00:48]} Nxe5 {[%emt 0:00:00]} 17. Qg3 {
[%emt 0:04:33]} Nc6 {[%emt 0:13:17]} 18. Nc4 {[%emt 0:02:03]} Nd4 {[%emt 0:03:
49]} 19. Bd3 {[%emt 0:00:20]} Bb5 {[%emt 0:00:24]} 20. e5 {[%emt 0:04:09]} Nf5
{[%emt 0:03:47]} 21. Qf4 {[%emt 0:15:06]} f6 {[%emt 0:00:00]} (21... Nd4 $11 {
feels stronger.}) 22. Bxf5 $14 {[%emt 0:01:14]} gxf5 {[%emt 0:00:42]} 23. Re1 {
[%emt 0:03:36]} Rc8 {[%emt 0:19:47]} 24. b3 {[%emt 0:00:00] Strongly
threatening Bb2.} fxe5 {[%emt 0:05:50]} 25. Nxe5 {[%emt 0:00:00]} Qxd6 {
[%emt 0:00:05] Threatens to win with ...Rfd8.} 26. Qg3 $1 {[%emt 0:00:00]} Qc7
{[%emt 0:01:27]} 27. Bg5 {[%emt 0:01:38]} (27. h4 $14) 27... Bc6 {[%emt 0:02:
11]} (27... c4 $11) 28. Bf4 {[%emt 0:03:40][%cal Ye5g6]} Qb7 {[%emt 0:00:51]}
29. Nc4 {[%emt 0:01:17]} (29. Rac1 $16) 29... Qd7 {[%emt 0:00:00]} (29... Rf6
$11 {keeps the balance.} 30. Ne5 Rff8) 30. Ne5 {[%emt 0:01:05]} Qb7 {[%emt 0:
00:18]} 31. Nxc6 {[%emt 0:01:12]} ({White should try} 31. Rac1 $16) 31... Rxc6
{[%emt 0:01:44]} 32. Rad1 {[%emt 0:00:57]} Qf7 {[%emt 0:01:07]} 33. h3 {
[%emt 0:02:39] White has compensation.} Re8 {[%emt 0:03:52]} 34. Be5 {[%emt 0:
02:01]} Rcc8 {[%emt 0:04:55]} 35. Rd6 {[%emt 0:01:08]} Rcd8 {[%emt 0:00:45]}
36. Red1 {[%emt 0:00:13] White is much more active.} Rxd6 {[%emt 0:00:43]} 37.
Rxd6 {[%emt 0:00:06]} Qg6 {[%emt 0:00:33] [#]} 38. Qe3 {[%emt 0:00:06]} Qh6 {
[%emt 0:02:51] This costs Black the game.} (38... Bxe5 $16 {is a better
defense.} 39. Qxe5 Qg7) 39. Qxc5 $18 {[%emt 0:02:32]} ({Don't do} 39. Rd7 Bf8
$16) 39... Bxe5 {[%emt 0:00:19]} 40. Qxe5 {[%emt 0:00:08] Endgame KQR-KQR} Qc1+
{[%emt 0:00:18]} 41. Kh2 {[%emt 0:30:05]} Qc3 {[%emt 0:02:37]} 42. Qb5 {
[%emt 0:00:00]} Re7 {[%emt 0:05:49] [#]} (42... Kf7 $16 43. Qe2 (43. Qd7+ Re7
$16) 43... Qc7) 43. Rd3 $1 {[%emt 0:00:00]} Qe1 {[%emt 0:10:56]} (43... Qc8 44.
Qxb4 Qc7+ 45. g3 Kf7) 44. Qb8+ {[%emt 0:00:00]} Kf7 {[%emt 0:00:10]} 45. Rg3 {
[%emt 0:00:00] White threatens Qg8+ and mate.} e5 {[%emt 0:04:15]} 46. Qg8+ {
[%emt 0:00:00] White mates.} Kf6 {[%emt 0:00:06]} 47. Qg5+ {[%emt 0:00:00]} Ke6
{[%emt 0:00:07]} 48. Qh6+ {[%emt 0:00:00]} Kd7 {[%emt 0:00:13]} 49. Rd3+ {
[%emt 0:00:00]} Ke8 {[%emt 0:00:08]} 50. Qh5+ {[%emt 0:00:00]} Rf7 {[%emt 0:00:
20]} 51. Qg5 {[%emt 0:00:00] Weighted Error Value: White=0.16 (very precise) /
Black=0.35} 1-0

[Event "44th Chess Olympiad Open 2022"]
[Site "Chennai"]
[Date "2022.08.03"]
[Round "6.15"]
[White "Gazik, Viktor"]
[Black "Mamedyarov, Shakhriyar"]
[Result "0-1"]
[WhiteElo "2544"]
[BlackElo "2759"]
[Annotator "TA"]
[PlyCount "92"]
[EventDate "2022.??.??"]
[TimeControl "60"]

{[%evp 17,92,-2,2,0,29,22,26,8,16,14,20,29,46,41,43,15,52,0,31,3,8,16,22,16,38,
40,40,32,33,36,27,27,49,31,55,50,52,56,66,58,132,69,59,47,66,60,70,66,64,21,28,
0,0,0,0,-39,-24,-72,-68,-199,-199,-215,-217,-217,-220,-319,-329,-323,-314,-311,
-322,-431,-426,-421,-406,-554,-441]} 1. e4 {[%emt 0:00:03]} e5 {[%emt 0:00:21]}
2. Nf3 {[%emt 0:00:25]} Nc6 {[%emt 0:00:07]} 3. d4 {[%emt 0:03:35]} exd4 {
[%emt 0:00:06]} 4. Nxd4 {[%emt 0:00:05]} Nf6 {[%emt 0:00:30]} 5. Nxc6 {[%emt 0:
00:00]} bxc6 {[%emt 0:00:06][%cal Yb7c6,Yc6d5]} 6. Bd3 {[%emt 0:00:08]} d5 {
[%emt 0:00:19]} 7. exd5 {[%emt 0:00:05]} cxd5 {[%emt 0:00:06]} 8. O-O {[%emt 0:
00:12]} Be7 {[%emt 0:00:19]} 9. c4 {[%emt 0:00:06]} O-O $1 {[%emt 0:00:00] The
main line 9...0-0 scores better than 9...d4.} 10. Nc3 {[%emt 0:00:05] C45:
Scotch Game.} Bb7 {[%emt 0:04:40]} (10... d4 $5 {[%cal Rd4c3]} 11. Ne4 Ng4 $11)
11. Qb3 {[%emt 0:00:21]} Rb8 {[%emt 0:01:02]} 12. cxd5 {[%emt 0:00:42] White
has an edge.} Bxd5 {[%emt 0:03:03]} 13. Qc2 {[%emt 0:01:37]} Ba8 {[%emt 0:00:
06] [#]} (13... Bc6 {is interesting.} 14. Re1 Bd6 15. h3 Re8) 14. Be3 $146 {
[%emt 0:00:20]} ({Predecessor:} 14. Re1 Re8 15. Be3 Qc8 16. f3 Qb7 17. Re2 Bd6
18. Ne4 Nxe4 19. Bxe4 Qb5 20. Bxa7 Bxe4 21. fxe4 {1-0 (34) Pechac, J (2544)
-Nikolov,M (2522) Thessaloniki 2021}) 14... Bd6 {[%emt 0:02:00]} 15. f3 {
[%emt 0:29:31] Prevents Ng4.} a5 {[%emt 0:10:11]} 16. Rad1 {[%emt 0:06:48]} h6
{[%emt 0:02:27]} 17. Rfe1 {[%emt 0:06:32]} (17. Ba7 $14) 17... Re8 {[%emt 0:00:
00]} 18. Bc4 {[%emt 0:03:51]} Nd7 {[%emt 0:07:05] White must now prevent ...
Qh4.} 19. Qf5 {[%emt 0:10:56][%csl Ya5,Yf7]} ({Avoid the trap} 19. Qg6 $2 Ne5
20. Bxf7+ Nxf7 $19) 19... Ne5 {[%emt 0:02:17]} 20. Bb3 {[%emt 0:00:16]} Qd7 {
[%emt 0:23:29]} 21. Qxd7 {[%emt 0:03:47]} Nxd7 {[%emt 0:01:42]} 22. Ba7 {
[%emt 0:10:25]} Rxe1+ {[%emt 0:01:27]} 23. Rxe1 {[%emt 0:00:10]} Rc8 {[%emt 0:
00:00]} 24. Nb5 {[%emt 0:04:10]} Bf8 {[%emt 0:02:38]} 25. Bf2 {[%emt 0:02:55]}
c6 {[%emt 0:05:00]} 26. Nd4 {[%emt 0:07:35]} Nc5 {[%emt 0:05:12]} 27. Bc4 {
[%emt 0:00:17] Inhibits Nd3.} Na4 {[%emt 0:04:12]} 28. b3 {[%emt 0:02:07]} Nc3
{[%emt 0:05:52] [#]} (28... Nb6 $1 $14) 29. Nf5 {[%emt 0:01:43]} ({White
should try} 29. Ne6 $1 $16 {[%cal Re6f8]}) 29... Nd5 $14 {[%emt 0:01:19]} 30.
Bd4 {[%emt 0:02:07][%cal Yd4g7] And now Bxg7! would win.} Kh7 {[%emt 0:03:03]}
31. Kf2 {[%emt 0:01:57]} Bb7 {[%emt 0:02:48]} 32. h4 {[%emt 0:01:05]} Rd8 {
[%emt 0:02:35]} 33. Bxd5 {[%emt 0:02:15]} Rxd5 {[%emt 0:01:15]} 34. Re8 {
[%emt 0:00:02]} Bb4 {[%emt 0:01:56]} 35. g4 {[%emt 0:00:01]} c5 {[%emt 0:00:04]
} 36. Be3 {[%emt 0:01:13]} Rd1 {[%emt 0:01:13]} 37. Re7 {[%emt 0:00:23]} (37.
Re5 $11 {deserves consideration.}) 37... Bd5 $17 {[%emt 0:00:03]} 38. Bf4 {
[%emt 0:00:52] Loses the game.} ({White should play} 38. Re5 $15) 38... c4 $19
{[%emt 0:01:39]} 39. Rc7 {[%emt 0:00:01]} cxb3 {[%emt 0:01:34]} 40. axb3 {
[%emt 0:00:02] [#]} Rd3 $1 {[%emt 0:01:48]} ({Not} 40... Bxb3 41. Be5 $17) 41.
Be5 {[%emt 0:11:16]} (41. Be3 {might work better.} Rxb3 42. Nd4 Rb2+ 43. Rc2
Rxc2+ 44. Nxc2) 41... Rxf3+ {[%emt 0:06:24]} 42. Ke2 {[%emt 0:00:52]} Rxb3 {
[%emt 0:00:15]} 43. Nxg7 {[%emt 0:00:41]} Rb1 {[%emt 0:05:50] Strongly
threatening ...Re1+.} 44. Bf6 {[%emt 0:02:40]} Re1+ {[%emt 0:00:09]} 45. Kf2 {
[%emt 0:00:11]} Re4 {[%emt 0:00:27]} 46. g5 {[%emt 0:00:20]} Be1+ {[%emt 0:00:
00] Weighted Error Value: White=0.25 (precise) /Black=0.08 (flawless)} 0-1